Workbook

Sheet MATRICULA
C3: Secretaría de Educación Pública del Estado de Baja California Sur
C4: Dirección de Educación Secundaria
C5: MATRÍCULA
C6: PERIODO DE EVALUACIÓN: | O6: 2DO TRIMESTRE
C7: CICLO ESCOLAR : | O7: 2021-2022
B10: DIRECCIÓN: | I10: EDUCACIÓN SECUNDARIA
B11: DIRECTORA: | I11: MTRA. OFELIA ELIZABETH OCHOA ROMERO
B13: Modalidad | C13: MATRÍCULA
C14: INSCRIPCIÓN INICIAL | O14: CAMBIOS DESDE OTRAS ESCUELAS (ALTAS)
C15: PRIMERO | F15: SEGUNDO | I15: TERCERO | L15: TOTAL | O15: PRIMERO | R15: SEGUNDO | U15: TERCERO | X15: TOTAL
C16: H | D16: M | E16: T | F16: H | G16: M | H16: T | I16: H | J16: M | K16: T | L16: H | M16: M | N16: T | O16: H | P16: M | Q16: T | R16: H | S16: M | T16: T | U16: H | V16: M | W16: T | X16: H | Y16: M | Z16: T
B17: Generales Públicas | C17: 2811 | D17: 2721 | E17: =IF(SUM(C17,D17)=0,"",SUM(C17,D17)) -> 5532 | F17: 2833 | G17: 2891 | H17: =IF(SUM(F17,G17)=0,"",SUM(F17,G17)) -> 5724 | I17: 2667 | J17: 2732 | K17: =IF(SUM(I17,J17)=0,"",SUM(I17,J17)) -> 5399 | L17: =IF(SUM(C17,F17,I17)=0,"",SUM(C17,F17,I17)) -> 8311 | M17: =IF(SUM(D17,G17,J17)=0,"",SUM(SUM(D17,G17,J17))) -> 8344 | N17: =IF(SUM(L17,M17)=0,"",SUM(L17,M17)) -> 16655 | O17: 83 | P17: 86 | Q17: =IF(SUM(O17,P17)=0,"",SUM(O17,P17)) -> 169 | R17: 69 | S17: 92 | T17: =IF(SUM(R17,S17)=0,"",SUM(R17,S17)) -> 161 | U17: 56 | V17: 73 | W17: =IF(SUM(U17,V17)=0,"",SUM(U17,V17)) -> 129 | X17: =IF(SUM(O17,R17,U17)=0,"",SUM(O17,R17,U17)) -> 208 | Y17: =IF(SUM(P17,S17,V17)=0,"",SUM(SUM(P17,S17,V17))) -> 251 | Z17: =IF(SUM(X17,Y17)=0,"",SUM(X17,Y17)) -> 459
B18: Particulares | C18: 586 | D18: 618 | E18: =IF(SUM(C18,D18)=0,"",SUM(C18,D18)) -> 1204 | F18: 553 | G18: 632 | H18: =IF(SUM(F18,G18)=0,"",SUM(F18,G18)) -> 1185 | I18: 580 | J18: 600 | K18: =IF(SUM(I18,J18)=0,"",SUM(I18,J18)) -> 1180 | L18: =IF(SUM(C18,F18,I18)=0,"",SUM(C18,F18,I18)) -> 1719 | M18: =IF(SUM(D18,G18,J18)=0,"",SUM(SUM(D18,G18,J18))) -> 1850 | N18: =IF(SUM(L18,M18)=0,"",SUM(L18,M18)) -> 3569 | O18: 22 | P18: 23 | Q18: =IF(SUM(O18,P18)=0,"",SUM(O18,P18)) -> 45 | R18: 21 | S18: 18 | T18: =IF(SUM(R18,S18)=0,"",SUM(R18,S18)) -> 39 | U18: 19 | V18: 16 | W18: =IF(SUM(U18,V18)=0,"",SUM(U18,V18)) -> 35 | X18: =IF(SUM(O18,R18,U18)=0,"",SUM(O18,R18,U18)) -> 62 | Y18: =IF(SUM(P18,S18,V18)=0,"",SUM(SUM(P18,S18,V18))) -> 57 | Z18: =IF(SUM(X18,Y18)=0,"",SUM(X18,Y18)) -> 119
B19: Secundaria Técnica | C19: 2599 | D19: 2552 | E19: 5151 | F19: 2559 | G19: 2604 | H19: 5163 | I19: 2541 | J19: 2506 | K19: 5047 | L19: 7699 | M19: 7662 | N19: 15361 | O19: 81 | P19: 65 | Q19: 146 | R19: 75 | S19: 73 | T19: 148 | U19: 64 | V19: 77 | W19: 141 | X19: 220 | Y19: 215 | Z19: 435
B20: Telesecundaria | C20: 940 | D20: 835 | E20: 1775 | F20: 902 | G20: 771 | H20: 1673 | I20: 872 | J20: 832 | K20: 1704 | L20: 2714 | M20: 2438 | N20: 5152 | O20: 26 | P20: 20 | Q20: 46 | R20: 25 | S20: 22 | T20: 47 | U20: 20 | V20: 22 | W20: 42 | X20: 71 | Y20: 64 | Z20: 135
E21: =IF(SUM(C21,D21)=0,"",SUM(C21,D21)) ->  | H21: =IF(SUM(F21,G21)=0,"",SUM(F21,G21)) ->  | K21: =IF(SUM(I21,J21)=0,"",SUM(I21,J21)) ->  | L21: =IF(SUM(C21,F21,I21)=0,"",SUM(C21,F21,I21)) ->  | M21: =IF(SUM(D21,G21,J21)=0,"",SUM(SUM(D21,G21,J21))) ->  | N21: =IF(SUM(L21,M21)=0,"",SUM(L21,M21)) ->  | Q21: =IF(SUM(O21,P21)=0,"",SUM(O21,P21)) ->  | T21: =IF(SUM(R21,S21)=0,"",SUM(R21,S21)) ->  | W21: =IF(SUM(U21,V21)=0,"",SUM(U21,V21)) ->  | X21: =IF(SUM(O21,R21,U21)=0,"",SUM(O21,R21,U21)) ->  | Y21: =IF(SUM(P21,S21,V21)=0,"",SUM(SUM(P21,S21,V21))) ->  | Z21: =IF(SUM(X21,Y21)=0,"",SUM(X21,Y21)) -> 
B27: TOTAL | C27: =IF(SUM(C17:C26)=0,"",SUM(C17:C26)) -> 6936 | D27: 6726 | E27: 13662 | F27: 6847 | G27: 6898 | H27: 13745 | I27: 6660 | J27: 6670 | K27: 13330 | L27: 20443 | M27: 20294 | N27: 40737 | O27: 212 | P27: 194 | Q27: 406 | R27: 190 | S27: 205 | T27: 395 | U27: 159 | V27: 188 | W27: 347 | X27: 561 | Y27: 587 | Z27: 1148
B29: Modalidad | C29: BAJAS | AA29: EXISTENCIA
C30: DESERCIÓN | O30: CAMBIOS HACIA OTRAS ESCUELAS (TRASLADOS)
C31: PRIMERO | F31: SEGUNDO | I31: TERCERO | L31: TOTAL | O31: PRIMERO | R31: SEGUNDO | U31: TERCERO | X31: TOTAL | AA31: PRIMERO | AD31: SEGUNDO | AG31: TERCERO | AJ31: TOTAL
C32: H | D32: M | E32: T | F32: H | G32: M | H32: T | I32: H | J32: M | K32: T | L32: H | M32: M | N32: T | O32: H | P32: M | Q32: T | R32: H | S32: M | T32: T | U32: H | V32: M | W32: T | X32: H | Y32: M | Z32: T | AA32: H | AB32: M | AC32: T | AD32: H | AE32: M | AF32: T | AG32: H | AH32: M | AI32: T | AJ32: H | AK32: M | AL32: T
B33: =IF(B17=0,"",B17) -> Generales Públicas | C33: 17 | D33: 16 | E33: =IF(SUM(C33,D33)=0,"",SUM(C33,D33)) -> 33 | F33: 9 | G33: 15 | H33: =IF(SUM(F33,G33)=0,"",SUM(F33,G33)) -> 24 | I33: 18 | J33: 14 | K33: =IF(SUM(I33,J33)=0,"",SUM(I33,J33)) -> 32 | L33: =IF(SUM(C33,F33,I33)=0,"",SUM(C33,F33,I33)) -> 44 | M33: =IF(SUM(D33,G33,J33)=0,"",SUM(SUM(D33,G33,J33))) -> 45 | N33: =IF(SUM(L33,M33)=0,"",SUM(L33,M33)) -> 89 | O33: 92 | P33: 91 | Q33: =IF(SUM(O33,P33)=0,"",SUM(O33,P33)) -> 183 | R33: 95 | S33: 103 | T33: =IF(SUM(R33,S33)=0,"",SUM(R33,S33)) -> 198 | U33: 71 | V33: 86 | W33: =IF(SUM(U33,V33)=0,"",SUM(U33,V33)) -> 157 | X33: =IF(SUM(O33,R33,U33)=0,"",SUM(O33,R33,U33)) -> 258 | Y33: =IF(SUM(P33,S33,V33)=0,"",SUM(SUM(P33,S33,V33))) -> 280 | Z33: =IF(SUM(X33,Y33)=0,"",SUM(X33,Y33)) -> 538 | AA33: =IF(SUM(C17,O17-C33-O33)=0,"",SUM(C17,O17-C33-O33)) -> 2785 | AB33: =IF(SUM(D17,P17-D33-P33)=0,"",SUM(D17,P17-D33-P33)) -> 2700 | AC33: =IF(SUM(AA33,AB33)=0,"",SUM(AA33,AB33)) -> 5485 | AD33: =IF(SUM(F17,R17-F33-R33)=0,"",SUM(F17,R17-F33-R33)) -> 2798 | AE33: =IF(SUM(G17,S17-G33-S33)=0,"",SUM(G17,S17-G33-S33)) -> 2865 | AF33: =IF(SUM(AD33,AE33)=0,"",SUM(AD33,AE33)) -> 5663 | AG33: =IF(SUM(I17,U17-I33-U33)=0,"",SUM(I17,U17-I33-U33)) -> 2634 | AH33: =IF(SUM(J17,V17-J33-V33)=0,"",SUM(J17,V17-J33-V33)) -> 2705 | AI33: =IF(SUM(AG33,AH33)=0,"",SUM(AG33,AH33)) -> 5339 | AJ33: =IF(SUM(AA33,AD33,AG33)=0,"",SUM(AA33,AD33,AG33)) -> 8217 | AK33: =IF(SUM(AB33,AE33,AH33)=0,"",SUM(SUM(AB33,AE33,AH33))) -> 8270 | AL33: =IF(SUM(AJ33,AK33)=0,"",SUM(AJ33,AK33)) -> 16487
B34: Particulares | C34: 1 | E34: =IF(SUM(C34,D34)=0,"",SUM(C34,D34)) -> 1 | G34: 1 | H34: =IF(SUM(F34,G34)=0,"",SUM(F34,G34)) -> 1 | I34: 1 | J34: 1 | K34: =IF(SUM(I34,J34)=0,"",SUM(I34,J34)) -> 2 | L34: =IF(SUM(C34,F34,I34)=0,"",SUM(C34,F34,I34)) -> 2 | M34: =IF(SUM(D34,G34,J34)=0,"",SUM(SUM(D34,G34,J34))) -> 2 | N34: =IF(SUM(L34,M34)=0,"",SUM(L34,M34)) -> 4 | O34: 12 | P34: 4 | Q34: =IF(SUM(O34,P34)=0,"",SUM(O34,P34)) -> 16 | R34: 10 | S34: 8 | T34: =IF(SUM(R34,S34)=0,"",SUM(R34,S34)) -> 18 | U34: 5 | V34: 11 | W34: =IF(SUM(U34,V34)=0,"",SUM(U34,V34)) -> 16 | X34: =IF(SUM(O34,R34,U34)=0,"",SUM(O34,R34,U34)) -> 27 | Y34: =IF(SUM(P34,S34,V34)=0,"",SUM(SUM(P34,S34,V34))) -> 23 | Z34: =IF(SUM(X34,Y34)=0,"",SUM(X34,Y34)) -> 50 | AA34: =IF(SUM(C18,O18-C34-O34)=0,"",SUM(C18,O18-C34-O34)) -> 595 | AB34: 637 | AC34: 1232 | AD34: =IF(SUM(F18,R18-F34-R34)=0,"",SUM(F18,R18-F34-R34)) -> 564 | AE34: =IF(SUM(G18,S18-G34-S34)=0,"",SUM(G18,S18-G34-S34)) -> 641 | AF34: =IF(SUM(AD34,AE34)=0,"",SUM(AD34,AE34)) -> 1205 | AG34: =IF(SUM(I18,U18-I34-U34)=0,"",SUM(I18,U18-I34-U34)) -> 593 | AH34: =IF(SUM(J18,V18-J34-V34)=0,"",SUM(J18,V18-J34-V34)) -> 604 | AI34: =IF(SUM(AG34,AH34)=0,"",SUM(AG34,AH34)) -> 1197 | AJ34: =IF(SUM(AA34,AD34,AG34)=0,"",SUM(AA34,AD34,AG34)) -> 1752 | AK34: =IF(SUM(AB34,AE34,AH34)=0,"",SUM(SUM(AB34,AE34,AH34))) -> 1882 | AL34: =IF(SUM(AJ34,AK34)=0,"",SUM(AJ34,AK34)) -> 3634
B35: =IF(B19=0,"",B19) -> Secundaria Técnica | C35: 10 | D35: 10 | E35: 20 | F35: 19 | G35: 12 | H35: 31 | I35: 19 | J35: 10 | K35: 29 | L35: 48 | M35: 32 | N35: 80 | O35: 100 | P35: 88 | Q35: 188 | R35: 85 | S35: 84 | T35: 169 | U35: 64 | V35: 84 | W35: 148 | X35: 249 | Y35: 256 | Z35: 505 | AA35: 2570 | AB35: 2519 | AC35: 5089 | AD35: =IF(SUM(F19,R19-F35-R35)=0,"",SUM(F19,R19-F35-R35)) -> 2530 | AE35: 2581 | AF35: 5111 | AG35: =IF(SUM(I19,U19-I35-U35)=0,"",SUM(I19,U19-I35-U35)) -> 2522 | AH35: 2489 | AI35: 5011 | AJ35: 7622 | AK35: 7589 | AL35: 15211
B36: Telesecundaria | C36: 6 | D36: 8 | E36: 14 | F36: 26 | G36: 9 | H36: 35 | I36: 27 | J36: 18 | K36: 45 | L36: 59 | M36: 35 | N36: 94 | O36: 28 | P36: 22 | Q36: 50 | R36: 34 | S36: 24 | T36: 58 | U36: 33 | V36: 21 | W36: 54 | X36: 95 | Y36: 67 | Z36: 162 | AA36: 932 | AB36: 825 | AC36: 1757 | AD36: 867 | AE36: 760 | AF36: 1627 | AG36: 832 | AH36: 815 | AI36: 1647 | AJ36: 2631 | AK36: 2400 | AL36: 5031
E37: =IF(SUM(C37,D37)=0,"",SUM(C37,D37)) ->  | H37: =IF(SUM(F37,G37)=0,"",SUM(F37,G37)) ->  | K37: =IF(SUM(I37,J37)=0,"",SUM(I37,J37)) ->  | L37: =IF(SUM(C37,F37,I37)=0,"",SUM(C37,F37,I37)) ->  | M37: =IF(SUM(D37,G37,J37)=0,"",SUM(SUM(D37,G37,J37))) ->  | N37: =IF(SUM(L37,M37)=0,"",SUM(L37,M37)) ->  | Q37: =IF(SUM(O37,P37)=0,"",SUM(O37,P37)) ->  | T37: =IF(SUM(R37,S37)=0,"",SUM(R37,S37)) ->  | W37: =IF(SUM(U37,V37)=0,"",SUM(U37,V37)) ->  | X37: =IF(SUM(O37,R37,U37)=0,"",SUM(O37,R37,U37)) ->  | Y37: =IF(SUM(P37,S37,V37)=0,"",SUM(SUM(P37,S37,V37))) ->  | Z37: =IF(SUM(X37,Y37)=0,"",SUM(X37,Y37)) ->  | AC37: =IF(SUM(AA37,AB37)=0,"",SUM(AA37,AB37)) ->  | AF37: =IF(SUM(AD37,AE37)=0,"",SUM(AD37,AE37)) ->  | AI37: =IF(SUM(AG37,AH37)=0,"",SUM(AG37,AH37)) ->  | AJ37: =IF(SUM(AA37,AD37,AG37)=0,"",SUM(AA37,AD37,AG37)) ->  | AK37: =IF(SUM(AB37,AE37,AH37)=0,"",SUM(SUM(AB37,AE37,AH37))) ->  | AL37: =IF(SUM(AJ37,AK37)=0,"",SUM(AJ37,AK37)) -> 
B43: TOTAL | C43: =IF(SUM(C33:C42)=0,"",SUM(C33:C42)) -> 34 | D43: 34 | E43: 68 | F43: 54 | G43: 37 | H43: 91 | I43: 65 | J43: 43 | K43: 108 | L43: 153 | M43: 114 | N43: 267 | O43: 232 | P43: 205 | Q43: 437 | R43: 224 | S43: 219 | T43: 443 | U43: 173 | V43: 202 | W43: 375 | X43: 629 | Y43: 626 | Z43: 1255 | AA43: 6882 | AB43: 6681 | AC43: 13563 | AD43: 6759 | AE43: 6847 | AF43: 13606 | AG43: 6581 | AH43: 6613 | AI43: 13194 | AJ43: 20222 | AK43: 20141 | AL43: 40363

Sheet APROV 1
B3: Secretaría de Educación Pública del Estado de Baja California Sur
B4: Dirección de Educación Secundaria
B5: APROVECHAMIENTO Y RIESGO DE NO ACREDITAR
B6: PRIMER GRADO
B7: PERIODO EVALUACIÓN: | N7: =IF(MATRICULA!O6=0,"",MATRICULA!O6) -> 2DO TRIMESTRE
B8: CICLO ESCOLAR : | N8: =IF(MATRICULA!O7=0,"",MATRICULA!O7) -> 2021-2022
A10: DIRECCIÓN: | H10: EDUCACIÓN SECUNDARIA
A11: DIRECTORA: | H11: MTRA. OFELIA ELIZABETH OCHOA ROMERO
A13: Promedio de Aprovechamiento de los Campos de Formación Académica | Z13: Promedio de Aprovechamiento de las Áreas de Desarrollo Personal y Social
A14: Modalidad | B14: Lengua Materna | E14: Matemáticas | H14: Inglés | K14: Ciencias y tecnología (Biología) | N14: Historia | Q14: Geografía | T14: Formación Cívica y Ética | W14: Tecnología I | Z14: Educación Física | AC14: Artes | AF14: Prom. Final
B15: CALIF | E15: CALIF | H15: CALIF | K15: CALIF | N15: CALIF | Q15: CALIF | T15: CALIF | W15: CALIF | Z15: CALIF | AC15: CALIF | AF15: CALIF
A16: =IF(MATRICULA!B17=0,"",MATRICULA!B17) -> Generales Públicas | B16: 8.6 | E16: 8.3 | H16: 8.7 | K16: 8.7 | N16: 8.7 | Q16: 8.7 | T16: 8.7 | W16: 8.9 | Z16: 9.2 | AC16: 9 | AF16: =IFERROR(ROUND(AVERAGE(B16:AE16),1),"") -> 8.8
A17: =IF(MATRICULA!B18=0,"",MATRICULA!B18) -> Particulares | B17: 8.6 | E17: 8.4 | H17: 8.6 | K17: 8.7 | N17: 8.7 | Q17: 8.6 | T17: 9 | W17: 9 | Z17: 9.5 | AC17: 9.4 | AF17: =IFERROR(ROUND(AVERAGE(B17:AE17),1),"") -> 8.9
A18: Secundarias Técnicas | B18: 8.3 | E18: 8.3 | H18: 8.5 | K18: 8.5 | N18: 8.4 | Q18: 8.5 | T18: 8.5 | W18: 8.7 | Z18: 9.2 | AC18: 8.7 | AF18: 8.6
A19: =IF(MATRICULA!B20=0,"",MATRICULA!B20) -> Telesecundaria | B19: 8.3 | E19: 8.1 | H19: 8.3 | K19: 8.4 | N19: 8.2 | Q19: 8.3 | T19: 8.6 | W19: 9 | Z19: 9.1 | AC19: 9 | AF19: 8.5
A20: =IF(MATRICULA!B21=0,"",MATRICULA!B21) -> 
A21: =IF(MATRICULA!B22=0,"",MATRICULA!B22) -> 
A22: =IF(MATRICULA!B23=0,"",MATRICULA!B23) -> 
A23: =IF(MATRICULA!B24=0,"",MATRICULA!B24) -> 
A24: =IF(MATRICULA!B25=0,"",MATRICULA!B25) -> 
A25: =IF(MATRICULA!B26=0,"",MATRICULA!B26) -> 
A26: Gral. | B26: =IFERROR(ROUND(AVERAGE(B16:D25),1),"") -> 8.5 | E26: =IFERROR(ROUND(AVERAGE(E16:G25),1),"") -> 8.3 | H26: =IFERROR(ROUND(AVERAGE(H16:J25),1),"") -> 8.5 | K26: =IFERROR(ROUND(AVERAGE(K16:M25),1),"") -> 8.6 | N26: =IFERROR(ROUND(AVERAGE(N16:P25),1),"") -> 8.5 | Q26: =IFERROR(ROUND(AVERAGE(Q16:S25),1),"") -> 8.5 | T26: =IFERROR(ROUND(AVERAGE(T16:V25),1),"") -> 8.7 | W26: =IFERROR(ROUND(AVERAGE(W16:Y25),1),"") -> 8.9 | Z26: =IFERROR(ROUND(AVERAGE(Z16:AB25),1),"") -> 9.3 | AC26: =IFERROR(ROUND(AVERAGE(AC16:AE25),1),"") -> 9 | AF26: =IFERROR(ROUND(AVERAGE(AF16:AG25),1),"") -> 8.7
A28: Campos de Formación Académica en riesgo de no acreditar | Z28: Áreas de Desarrollo Personal y Social en situación de riesgo de no acreditar
A29: Modalidad | B29: Lengua Materna | E29: Matemáticas | H29: Inglés | K29: Ciencias y tecnología (Biología) | N29: Historia | Q29: Geografía | T29: Formación Cívica y Ética | W29: Tecnología I | Z29: Educación Física | AC29: Artes | AF29: Total
B30: 5 | C30: 6 | D30: T | E30: 5 | F30: 6 | G30: T | H30: 5 | I30: 6 | J30: T | K30: 5 | L30: 6 | M30: T | N30: 5 | O30: 6 | P30: T | Q30: 5 | R30: 6 | S30: T | T30: 5 | U30: 6 | V30: T | W30: 5 | X30: 6 | Y30: T | Z30: 5 | AA30: 6 | AB30: T | AC30: 5 | AD30: 6 | AE30: T | AF30: 5 | AG30: 6
A31: =IF(MATRICULA!B17=0,"",MATRICULA!B17) -> Generales Públicas | C31: 339 | D31: =IF(SUM(B31,C31)=0,"",SUM(B31,C31)) -> 339 | F31: 645 | G31: =IF(SUM(E31,F31)=0,"",SUM(E31,F31)) -> 645 | I31: 352 | J31: =IF(SUM(H31,I31)=0,"",SUM(H31,I31)) -> 352 | L31: 300 | M31: =IF(SUM(K31,L31)=0,"",SUM(K31,L31)) -> 300 | O31: 357 | P31: =IF(SUM(N31,O31)=0,"",SUM(N31,O31)) -> 357 | R31: 334 | S31: =IF(SUM(Q31,R31)=0,"",SUM(Q31,R31)) -> 334 | U31: 264 | V31: =IF(SUM(T31,U31)=0,"",SUM(T31,U31)) -> 264 | X31: 301 | Y31: =IF(SUM(W31,X31)=0,"",SUM(W31,X31)) -> 301 | AA31: 104 | AB31: =IF(SUM(Z31,AA31)=0,"",SUM(Z31,AA31)) -> 104 | AD31: 328 | AE31: =IF(SUM(AC31,AD31)=0,"",SUM(AC31,AD31)) -> 328 | AF31: =IF(SUM(B31,E31,H31,K31,N31,Q31,T31,W31,Z31,AC31)=0,"",SUM(B31,E31,H31,K31,N31,Q31,T31,W31,Z31,AC31)) ->  | AG31: =IF(SUM(C31,F31,I31,L31,O31,R31,U31,X31,AA31,AD31)=0,"",SUM(C31,F31,I31,L31,O31,R31,U31,X31,AA31,AD31)) -> 3324
A32: =IF(MATRICULA!B18=0,"",MATRICULA!B18) -> Particulares | C32: 74 | D32: =IF(SUM(B32,C32)=0,"",SUM(B32,C32)) -> 74 | F32: 129 | G32: =IF(SUM(E32,F32)=0,"",SUM(E32,F32)) -> 129 | I32: 91 | J32: =IF(SUM(H32,I32)=0,"",SUM(H32,I32)) -> 91 | L32: 53 | M32: =IF(SUM(K32,L32)=0,"",SUM(K32,L32)) -> 53 | O32: 42 | P32: =IF(SUM(N32,O32)=0,"",SUM(N32,O32)) -> 42 | R32: 92 | S32: =IF(SUM(Q32,R32)=0,"",SUM(Q32,R32)) -> 92 | U32: 53 | V32: =IF(SUM(T32,U32)=0,"",SUM(T32,U32)) -> 53 | X32: 54 | Y32: =IF(SUM(W32,X32)=0,"",SUM(W32,X32)) -> 54 | AA32: 31 | AB32: =IF(SUM(Z32,AA32)=0,"",SUM(Z32,AA32)) -> 31 | AD32: 39 | AE32: =IF(SUM(AC32,AD32)=0,"",SUM(AC32,AD32)) -> 39 | AF32: =IF(SUM(B32,E32,H32,K32,N32,Q32,T32,W32,Z32,AC32)=0,"",SUM(B32,E32,H32,K32,N32,Q32,T32,W32,Z32,AC32)) ->  | AG32: =IF(SUM(C32,F32,I32,L32,O32,R32,U32,X32,AA32,AD32)=0,"",SUM(C32,F32,I32,L32,O32,R32,U32,X32,AA32,AD32)) -> 658
A33: =IF(MATRICULA!B19=0,"",MATRICULA!B19) -> Secundaria Técnica | C33: 563 | D33: 563 | F33: 484 | G33: 484 | I33: 610 | J33: 610 | L33: 617 | M33: 617 | O33: 722 | P33: 722 | R33: 591 | S33: 591 | U33: 627 | V33: 627 | X33: 439 | Y33: 439 | AA33: 243 | AB33: 243 | AD33: 494 | AE33: 494 | AG33: 5390
A34: =IF(MATRICULA!B20=0,"",MATRICULA!B20) -> Telesecundaria | C34: 166 | D34: 166 | F34: 179 | G34: 179 | I34: 192 | J34: 192 | L34: 168 | M34: 168 | O34: 189 | P34: 189 | R34: 176 | S34: 176 | U34: 154 | V34: 154 | X34: 141 | Y34: 141 | AA34: 175 | AB34: 175 | AD34: 141 | AE34: 141 | AG34: 1681
A35: =IF(MATRICULA!B21=0,"",MATRICULA!B21) -> 
A36: =IF(MATRICULA!B22=0,"",MATRICULA!B22) -> 
A37: =IF(MATRICULA!B23=0,"",MATRICULA!B23) -> 
A38: =IF(MATRICULA!B24=0,"",MATRICULA!B24) ->  | D38: =IF(SUM(B38,C38)=0,"",SUM(B38,C38)) ->  | G38: =IF(SUM(E38,F38)=0,"",SUM(E38,F38)) ->  | J38: =IF(SUM(H38,I38)=0,"",SUM(H38,I38)) ->  | M38: =IF(SUM(K38,L38)=0,"",SUM(K38,L38)) ->  | P38: =IF(SUM(N38,O38)=0,"",SUM(N38,O38)) ->  | S38: =IF(SUM(Q38,R38)=0,"",SUM(Q38,R38)) ->  | V38: =IF(SUM(T38,U38)=0,"",SUM(T38,U38)) ->  | Y38: =IF(SUM(W38,X38)=0,"",SUM(W38,X38)) ->  | AB38: =IF(SUM(Z38,AA38)=0,"",SUM(Z38,AA38)) ->  | AE38: =IF(SUM(AC38,AD38)=0,"",SUM(AC38,AD38)) ->  | AF38: =IF(SUM(B38,E38,H38,K38,N38,Q38,T38,W38,Z38,AC38)=0,"",SUM(B38,E38,H38,K38,N38,Q38,T38,W38,Z38,AC38)) ->  | AG38: =IF(SUM(C38,F38,I38,L38,O38,R38,U38,X38,AA38,AD38)=0,"",SUM(C38,F38,I38,L38,O38,R38,U38,X38,AA38,AD38)) -> 
A39: =IF(MATRICULA!B25=0,"",MATRICULA!B25) ->  | D39: =IF(SUM(B39,C39)=0,"",SUM(B39,C39)) ->  | G39: =IF(SUM(E39,F39)=0,"",SUM(E39,F39)) ->  | J39: =IF(SUM(H39,I39)=0,"",SUM(H39,I39)) ->  | M39: =IF(SUM(K39,L39)=0,"",SUM(K39,L39)) ->  | P39: =IF(SUM(N39,O39)=0,"",SUM(N39,O39)) ->  | S39: =IF(SUM(Q39,R39)=0,"",SUM(Q39,R39)) ->  | V39: =IF(SUM(T39,U39)=0,"",SUM(T39,U39)) ->  | Y39: =IF(SUM(W39,X39)=0,"",SUM(W39,X39)) ->  | AB39: =IF(SUM(Z39,AA39)=0,"",SUM(Z39,AA39)) ->  | AE39: =IF(SUM(AC39,AD39)=0,"",SUM(AC39,AD39)) ->  | AF39: =IF(SUM(B39,E39,H39,K39,N39,Q39,T39,W39,Z39,AC39)=0,"",SUM(B39,E39,H39,K39,N39,Q39,T39,W39,Z39,AC39)) ->  | AG39: =IF(SUM(C39,F39,I39,L39,O39,R39,U39,X39,AA39,AD39)=0,"",SUM(C39,F39,I39,L39,O39,R39,U39,X39,AA39,AD39)) -> 
A40: =IF(MATRICULA!B26=0,"",MATRICULA!B26) -> 
A41: Total | B41: =IF(SUM(B31:B40)=0,"",SUM(B31:B40)) ->  | C41: 1142 | D41: 1142 | F41: 1437 | G41: 1437 | I41: 1245 | J41: 1245 | L41: 1138 | M41: 1138 | O41: 1310 | P41: 1310 | R41: 1193 | S41: 1193 | U41: 1098 | V41: 1098 | X41: 935 | Y41: 935 | AA41: 553 | AB41: 553 | AD41: 1002 | AE41: 1002 | AG41: 11053
A43: Nota: Para las columnas "Campos de Formación Académica y Áreas de Desarrollo Personal y Social en riesgo de no acreditar" registre la cantidad de cincos o seis que existen en cada campo o área.

Sheet PARTICIPACIÓN 1
B3: Secretaría de Educación Pública del Estado de Baja California Sur
B4: Dirección de Educación Secundaria
B5: NIVELES DE COMUNICACIÓN Y PARTICIPACIÓN DE ALUMNOS
B6: PRIMER GRADO
B7: PERIODO EVALUACIÓN: | N7: =IF('APROV 1'!N7:Z7<>0,'APROV 1'!N7:Z7, "") -> 2DO TRIMESTRE
B8: CICLO ESCOLAR : | N8: =IF('APROV 1'!N8:Z8<>0, 'APROV 1'!N8:Z8, "") -> 2021-2022
A11: DIRECCIÓN: | H11: EDUCACIÓN SECUNDARIA
A12: DIRECTORA: | H12: MTRA. OFELIA ELIZABETH OCHOA ROMERO
A14: COMUNICACIÓN Y PARTICIPACIÓN CON ALUMNOS (Registrar cantidad de alumnos)
A15: Modalidad | D15: COMUNICACIÓN Y PARTICIPACIÓN SOSTENIDA | H15: % | L15: COMUNICACIÓN Y PARTICIPACIÓN INTERMITENTE | P15: % | T15: COMUNICACIÓN PRACTICAMENTE INEXISTENTE | X15: % | AB15: TOTAL | AE15: MATRÍCULA EXISTENCIA
A17: =IF(MATRICULA!B17=0,"",MATRICULA!B17) -> Generales Públicas | D17: 4591 | H17: =IFERROR((D17+E17+F17)/AE17*100,"") -> 83.70100273 | L17: 807 | P17: =IFERROR((L17+M17+N17)/AE17*100,"") -> 14.71285324 | T17: 87 | X17: =IFERROR((T17+U17+V17)/AE17*100,"") -> 1.586144029 | AB17: =IF(SUM(D17:G17,L17:O17,T17:W17)=0,"",SUM(D17:G17,L17:O17,T17:W17)) -> 5485 | AE17: =IF(MATRICULA!AC33=0,"",MATRICULA!AC33) -> 5485
A18: =IF(MATRICULA!B18=0,"",MATRICULA!B18) -> Particulares | D18: 1214 | H18: =IFERROR((D18+E18+F18)/AE18*100,"") -> 98.53896104 | L18: 18 | P18: =IFERROR((L18+M18+N18)/AE18*100,"") -> 1.461038961 | T18: 0 | X18: =IFERROR((T18+U18+V18)/AE18*100,"") -> 0 | AB18: =IF(SUM(D18:G18,L18:O18,T18:W18)=0,"",SUM(D18:G18,L18:O18,T18:W18)) -> 1232 | AE18: =IF(MATRICULA!AC34=0,"",MATRICULA!AC34) -> 1232
A19: =IF(MATRICULA!B19=0,"",MATRICULA!B19) -> Secundaria Técnica | D19: 4315 | H19: 84.79072509 | L19: 720 | P19: 14.1481627 | T19: 54 | X19: 1.061112203 | AB19: 5089 | AE19: =IF(MATRICULA!AC35=0,"",MATRICULA!AC35) -> 5089
A20: =IF(MATRICULA!B20=0,"",MATRICULA!B20) -> Telesecundaria | D20: 1576 | H20: 89.69834946 | L20: 151 | P20: 8.59419465 | T20: 30 | X20: 1.707455891 | AB20: 1757 | AE20: =IF(MATRICULA!AC36=0,"",MATRICULA!AC36) -> 1757
A21: =IF(MATRICULA!B21=0,"",MATRICULA!B21) ->  | AE21: =IF(MATRICULA!AC37=0,"",MATRICULA!AC37) -> 
A22: =IF(MATRICULA!B22=0,"",MATRICULA!B22) ->  | AE22: =IF(MATRICULA!AC38=0,"",MATRICULA!AC38) -> 
A23: =IF(MATRICULA!B23=0,"",MATRICULA!B23) ->  | AE23: =IF(MATRICULA!AC39=0,"",MATRICULA!AC39) -> 
A24: =IF(MATRICULA!B24=0,"",MATRICULA!B24) ->  | AE24: =IF(MATRICULA!AC40=0,"",MATRICULA!AC40) -> 
A25: =IF(MATRICULA!B25=0,"",MATRICULA!B25) ->  | AE25: =IF(MATRICULA!AC41=0,"",MATRICULA!AC41) -> 
A26: =IF(MATRICULA!B26=0,"",MATRICULA!B26) ->  | AE26: =IF(MATRICULA!AC42=0,"",MATRICULA!AC42) -> 
A27: TOTAL | D27: =SUM(D17:D26) -> 11696 | H27: 86.23460886 | L27: =SUM(L17:L26) -> 1696 | P27: 12.50460813 | T27: =SUM(T17:T26) -> 171 | X27: 1.260783013 | AB27: =SUM(AB17:AD26) -> 13563 | AE27: =SUM(AE17:AG26) -> 13563

Sheet Gráfica APROV 1
B3: Secretaría de Educación Pública del Estado de Baja California Sur
B4: Dirección de Educación Secundaria
B5: PRIMER GRADO
B6: PERIODO EVALUACIÓN: | N6: =IF('APROV 1'!N7:Z7<>0,'APROV 1'!N7:Z7, "") -> 2DO TRIMESTRE
B7: CICLO ESCOLAR : | N7: =IF('APROV 1'!N8:Z8<>0, 'APROV 1'!N8:Z8, "") -> 2021-2022
A10: DIRECCIÓN: | H10: EDUCACIÓN SECUNDARIA
A11: DIRECTORA: | H11: MTRA. OFELIA ELIZABETH OCHOA ROMERO
B17: Lengua Materna | C17: Matemáticas | D17: Inglés | E17: Ciencias y tecnología (Biología) | F17: Historia | G17: Geografía | H17: Formación Cívica y Ética | I17: Tecnología I | J17: Educación Física | K17: Artes
B18: ='APROV 1'!B26:D26 -> 8.5 | C18: ='APROV 1'!E26 -> 8.3 | D18: ='APROV 1'!H26 -> 8.5 | E18: ='APROV 1'!K26 -> 8.6 | F18: ='APROV 1'!N26 -> 8.5 | G18: ='APROV 1'!Q26 -> 8.5 | H18: ='APROV 1'!T26 -> 8.7 | I18: ='APROV 1'!W26 -> 8.9 | J18: ='APROV 1'!Z26 -> 9.3 | K18: ='APROV 1'!AC26 -> 9

Sheet Gráfica PART 1
B3: Secretaría de Educación Pública del Estado de Baja California Sur
B4: Dirección de Educación Secundaria
B5: PRIMER GRADO
B6: PERIODO EVALUACIÓN: | N6: =IF('APROV 1'!N7:Z7<>0,'APROV 1'!N7:Z7, "") -> 2DO TRIMESTRE
B7: CICLO ESCOLAR : | N7: =IF('APROV 1'!N8:Z8<>0, 'APROV 1'!N8:Z8, "") -> 2021-2022
A10: DIRECCIÓN: | H10: EDUCACIÓN SECUNDARIA
A11: DIRECTORA: | H11: MTRA. OFELIA ELIZABETH OCHOA ROMERO
D13: COMUNICACIÓN Y PARTICIPACIÓN SOSTENIDA | E13: COMUNICACIÓN Y PARTICIPACIÓN INTERMITENTE | F13: COMUNICACIÓN PRACTICAMENTE INEXISTENTE
D14: ='PARTICIPACIÓN 1'!H27/100 -> 0.8623460886 | E14: ='PARTICIPACIÓN 1'!P27/100 -> 0.1250460813 | F14: ='PARTICIPACIÓN 1'!X27/100 -> 0.01260783013

Sheet APROV 2
B3: Secretaría de Educación Pública del Estado de Baja California Sur
B4: Dirección de Educación Secundaria
B5: APROVECHAMIENTO Y RIESGO DE NO ACREDITAR
B6: SEGUNDO GRADO
B7: PERIODO EVALUACIÓN: | N7: =IF('APROV 1'!N7:Z7<>0,'APROV 1'!N7:Z7, "") -> 2DO TRIMESTRE
B8: CICLO ESCOLAR : | N8: =IF('APROV 1'!N8:Z8<>0, 'APROV 1'!N8:Z8, "") -> 2021-2022
A10: DIRECCIÓN: | H10: EDUCACIÓN SECUNDARIA
A11: DIRECTORA: | H11: MTRA. OFELIA ELIZABETH OCHOA ROMERO
A14: Promedio de Aprovechamiento de los Campos de Formación Académica | W14: Promedio de Aprovechamiento de las Áreas de Desarrollo Personal y Social
A15: Modalidad | B15: Lengua Materna | E15: Matemáticas | H15: Inglés | K15: Ciencias y tecnología (Física) | N15: Historia | Q15: Formación Cívica y Ética | T15: Tecnología II | W15: Educación Física | Z15: Artes | AC15: Prom. Final
B16: CALIF | E16: CALIF | H16: CALIF | K16: CALIF | N16: CALIF | Q16: CALIF | T16: CALIF | W16: CALIF | Z16: CALIF | AC16: CALIF
A17: =IF(MATRICULA!B17=0,"",MATRICULA!B17) -> Generales Públicas | B17: 8.5 | E17: 8.4 | H17: 8.7 | K17: 8.6 | N17: 8.7 | Q17: 8.8 | T17: 8.9 | W17: 9.2 | Z17: 8.9 | AC17: =IFERROR(ROUND(AVERAGE(B17:AB17),1),"") -> 8.7
A18: =IF(MATRICULA!B18=0,"",MATRICULA!B18) -> Particulares | B18: 8.7 | E18: 8.5 | H18: 8.6 | K18: 8.5 | N18: 8.7 | Q18: 8.9 | T18: 9.1 | W18: 9.5 | Z18: 9.3 | AC18: 8.9
A19: =IF(MATRICULA!B19=0,"",MATRICULA!B19) -> Secundaria Técnica | B19: 8.5 | E19: 8.4 | H19: 8.5 | K19: 8.5 | N19: 8.6 | Q19: 8.5 | T19: 8.8 | W19: 9.1 | Z19: 8.8 | AC19: =IFERROR(ROUND(AVERAGE(B19:AB19),1),"") -> 8.6
A20: =IF(MATRICULA!B20=0,"",MATRICULA!B20) -> Telesecundaria | B20: 8.4 | E20: 8.3 | H20: 8.4 | K20: 8.4 | N20: 8.4 | Q20: 8.8 | T20: 9 | W20: 9.2 | Z20: 9.1 | AC20: 8.7
A21: =IF(MATRICULA!B21=0,"",MATRICULA!B21) -> 
A22: =IF(MATRICULA!B22=0,"",MATRICULA!B22) -> 
A23: =IF(MATRICULA!B23=0,"",MATRICULA!B23) -> 
A24: =IF(MATRICULA!B24=0,"",MATRICULA!B24) ->  | AC24: =IFERROR(ROUND(AVERAGE(B24:AB24),1),"") -> 
A25: =IF(MATRICULA!B25=0,"",MATRICULA!B25) -> 
A26: =IF(MATRICULA!B26=0,"",MATRICULA!B26) -> 
A27: Gral. | B27: =IFERROR(ROUND(AVERAGE(B17:D26),1),"") -> 8.5 | E27: =IFERROR(ROUND(AVERAGE(E17:G26),1),"") -> 8.4 | H27: =IFERROR(ROUND(AVERAGE(H17:J26),1),"") -> 8.6 | K27: =IFERROR(ROUND(AVERAGE(K17:M26),1),"") -> 8.5 | N27: =IFERROR(ROUND(AVERAGE(N17:P26),1),"") -> 8.6 | Q27: =IFERROR(ROUND(AVERAGE(Q17:S26),1),"") -> 8.8 | T27: =IFERROR(ROUND(AVERAGE(T17:V26),1),"") -> 9 | W27: =IFERROR(ROUND(AVERAGE(W17:Y26),1),"") -> 9.3 | Z27: =IFERROR(ROUND(AVERAGE(Z17:AB26),1),"") -> 9 | AC27: =IFERROR(ROUND(AVERAGE(AC17:AD26),1),"") -> 8.7
A29: Campos de Formación Académica en situacion de riesgo de no acreditar | W29: Áreas de Desarrollo Personal y Social en situación de riesgo de no acreditar
A30: Modalidad | B30: Lengua Materna | E30: Matemáticas | H30: Inglés | K30: Ciencias y tecnología (Física) | N30: Historia | Q30: Formación Cívica y Ética | T30: Tecnología II | W30: Educación Física | Z30: Artes | AC30: Total
B31: 5 | C31: 6 | D31: T | E31: 5 | F31: 6 | G31: T | H31: 5 | I31: 6 | J31: T | K31: 5 | L31: 6 | M31: T | N31: 5 | O31: 6 | P31: T | Q31: 5 | R31: 6 | S31: T | T31: 5 | U31: 6 | V31: T | W31: 5 | X31: 6 | Y31: T | Z31: 5 | AA31: 6 | AB31: T | AC31: 5 | AD31: 6
A32: =IF(MATRICULA!B17=0,"",MATRICULA!B17) -> Generales Públicas | C32: 262 | D32: =IF(SUM(B32,C32)=0,"",SUM(B32,C32)) -> 262 | F32: 420 | G32: =IF(SUM(E32,F32)=0,"",SUM(E32,F32)) -> 420 | I32: 346 | J32: =IF(SUM(H32,I32)=0,"",SUM(H32,I32)) -> 346 | L32: 394 | M32: =IF(SUM(K32,L32)=0,"",SUM(K32,L32)) -> 394 | O32: 398 | P32: =IF(SUM(N32,O32)=0,"",SUM(N32,O32)) -> 398 | R32: 259 | S32: =IF(SUM(Q32,R32)=0,"",SUM(Q32,R32)) -> 259 | U32: 248 | V32: =IF(SUM(T32,U32)=0,"",SUM(T32,U32)) -> 248 | X32: 97 | Y32: =IF(SUM(W32,X32)=0,"",SUM(W32,X32)) -> 97 | AA32: 294 | AB32: =IF(SUM(Z32,AA32)=0,"",SUM(Z32,AA32)) -> 294 | AC32: =IF(SUM(B32,E32,H32,K32,N32,Q32,T32,W32,Z32)=0,"",SUM(B32,E32,H32,K32,N32,Q32,T32,W32,Z32)) ->  | AD32: =IF(SUM(C32,F32,I32,L32,O32,R32,U32,X32,AA32)=0,"",SUM(C32,F32,I32,L32,O32,R32,U32,X32,AA32)) -> 2718
A33: =IF(MATRICULA!B18=0,"",MATRICULA!B18) -> Particulares | C33: 56 | D33: 56 | F33: 112 | G33: 112 | I33: 68 | J33: 68 | L33: 68 | M33: 68 | O33: 50 | P33: 50 | R33: 42 | S33: 42 | U33: 65 | V33: 65 | X33: 28 | Y33: 28 | AA33: 47 | AB33: 47 | AD33: 536
A34: =IF(MATRICULA!B19=0,"",MATRICULA!B19) -> Secundaria Técnica | C34: 507 | D34: 507 | F34: 534 | G34: 534 | I34: 480 | J34: 480 | L34: 452 | M34: 452 | O34: 493 | P34: 493 | R34: 607 | S34: 607 | U34: 376 | V34: 376 | X34: 209 | Y34: 209 | AA34: 378 | AB34: 378 | AD34: 4036
A35: =IF(MATRICULA!B20=0,"",MATRICULA!B20) -> Telesecundaria | C35: 143 | D35: 143 | F35: 140 | G35: 140 | I35: 151 | J35: 151 | L35: 140 | M35: 140 | O35: 148 | P35: 148 | R35: 118 | S35: 118 | U35: 105 | V35: 105 | X35: 97 | Y35: 97 | AA35: 103 | AB35: 103 | AD35: 1145
A36: =IF(MATRICULA!B21=0,"",MATRICULA!B21) -> 
A37: =IF(MATRICULA!B22=0,"",MATRICULA!B22) -> 
A38: =IF(MATRICULA!B23=0,"",MATRICULA!B23) -> 
A39: =IF(MATRICULA!B24=0,"",MATRICULA!B24) ->  | D39: =IF(SUM(B39,C39)=0,"",SUM(B39,C39)) ->  | G39: =IF(SUM(E39,F39)=0,"",SUM(E39,F39)) ->  | J39: =IF(SUM(H39,I39)=0,"",SUM(H39,I39)) ->  | M39: =IF(SUM(K39,L39)=0,"",SUM(K39,L39)) ->  | P39: =IF(SUM(N39,O39)=0,"",SUM(N39,O39)) ->  | S39: =IF(SUM(Q39,R39)=0,"",SUM(Q39,R39)) ->  | V39: =IF(SUM(T39,U39)=0,"",SUM(T39,U39)) ->  | Y39: =IF(SUM(W39,X39)=0,"",SUM(W39,X39)) ->  | AB39: =IF(SUM(Z39,AA39)=0,"",SUM(Z39,AA39)) ->  | AC39: =IF(SUM(B39,E39,H39,K39,N39,Q39,T39,W39,Z39)=0,"",SUM(B39,E39,H39,K39,N39,Q39,T39,W39,Z39)) -> 
A40: =IF(MATRICULA!B25=0,"",MATRICULA!B25) -> 
A41: =IF(MATRICULA!B26=0,"",MATRICULA!B26) -> 
A42: Total | B42: =IF(SUM(B32:B41)=0,"",SUM(B32:B41)) ->  | C42: 968 | D42: 968 | F42: 1206 | G42: 1206 | I42: 1045 | J42: 1045 | L42: 1054 | M42: 1054 | O42: 1089 | P42: 1089 | R42: 1026 | S42: 1026 | U42: 794 | V42: 794 | X42: 431 | Y42: 431 | AA42: 822 | AB42: 822 | AD42: 8435
A44: Nota: Para las columnas "Campos de Formación Académica y Áreas de Desarrollo Personal y Social en riesgo de no acreditar" registre la cantidad de cincos o seis que existen en cada campo o área.

Sheet PARTICIPACIÓN 2
B3: Secretaría de Educación Pública del Estado de Baja California Sur
B4: Dirección de Educación Secundaria
B5: NIVELES DE COMUNICACIÓN Y PARTICIPACIÓN DE ALUMNOS
B6: SEGUNDO GRADO
B7: PERIODO EVALUACIÓN: | N7: =IF('APROV 1'!N7:Z7<>0,'APROV 1'!N7:Z7, "") -> 2DO TRIMESTRE
B8: CICLO ESCOLAR : | N8: =IF('APROV 1'!N8:Z8<>0, 'APROV 1'!N8:Z8, "") -> 2021-2022
A11: DIRECCIÓN: | H11: EDUCACIÓN SECUNDARIA
A12: DIRECTORA: | H12: MTRA. OFELIA ELIZABETH OCHOA ROMERO
A14: COMUNICACIÓN Y PARTICIPACIÓN CON ALUMNOS (Registrar cantidad de alumnos)
A15: Modalidad | D15: COMUNICACIÓN Y PARTICIPACIÓN SOSTENIDA | H15: % | L15: COMUNICACIÓN Y PARTICIPACIÓN INTERMITENTE | P15: % | T15: COMUNICACIÓN PRACTICAMENTE INEXISTENTE | X15: % | AB15: TOTAL | AE15: MATRÍCULA EXISTENCIA
A17: =IF(MATRICULA!B17=0,"",MATRICULA!B17) -> Generales Públicas | D17: 4743 | H17: =IFERROR((D17+E17+F17)/AE17*100,"") -> 83.75419389 | L17: 816 | P17: =IFERROR((L17+M17+N17)/AE17*100,"") -> 14.40932368 | T17: 104 | X17: =IFERROR((T17+U17+V17)/AE17*100,"") -> 1.83648243 | AB17: =IF(SUM(D17:G17,L17:O17,T17:W17)=0,"",SUM(D17:G17,L17:O17,T17:W17)) -> 5663 | AE17: =IF(MATRICULA!AF33=0,"",MATRICULA!AF33) -> 5663
A18: =IF(MATRICULA!B18=0,"",MATRICULA!B18) -> Particulares | D18: 1175 | H18: =IFERROR((D18+E18+F18)/AE18*100,"") -> 97.51037344 | L18: 30 | P18: =IFERROR((L18+M18+N18)/AE18*100,"") -> 2.489626556 | T18: 0 | X18: =IFERROR((T18+U18+V18)/AE18*100,"") -> 0 | AB18: =IF(SUM(D18:G18,L18:O18,T18:W18)=0,"",SUM(D18:G18,L18:O18,T18:W18)) -> 1205 | AE18: =IF(MATRICULA!AF34=0,"",MATRICULA!AF34) -> 1205
A19: =IF(MATRICULA!B19=0,"",MATRICULA!B19) -> Secundaria Técnica | D19: 4327 | H19: 84.6605361 | L19: 714 | P19: 13.96986891 | T19: 70 | X19: 1.369594991 | AB19: 5111 | AE19: =IF(MATRICULA!AF35=0,"",MATRICULA!AF35) -> 5111
A20: =IF(MATRICULA!B20=0,"",MATRICULA!B20) -> Telesecundaria | D20: 1499 | H20: 92.13275968 | L20: 99 | P20: 6.084818685 | T20: 29 | X20: 1.782421635 | AB20: 1627 | AE20: =IF(MATRICULA!AF36=0,"",MATRICULA!AF36) -> 1627
A21: =IF(MATRICULA!B21=0,"",MATRICULA!B21) ->  | AE21: =IF(MATRICULA!AF37=0,"",MATRICULA!AF37) -> 
A22: =IF(MATRICULA!B22=0,"",MATRICULA!B22) ->  | AE22: =IF(MATRICULA!AF38=0,"",MATRICULA!AF38) -> 
A23: =IF(MATRICULA!B23=0,"",MATRICULA!B23) ->  | AE23: =IF(MATRICULA!AF39=0,"",MATRICULA!AF39) -> 
A24: =IF(MATRICULA!B24=0,"",MATRICULA!B24) ->  | AE24: =IF(MATRICULA!AF40=0,"",MATRICULA!AF40) -> 
A25: =IF(MATRICULA!B25=0,"",MATRICULA!B25) ->  | AE25: =IF(MATRICULA!AF41=0,"",MATRICULA!AF41) -> 
A26: =IF(MATRICULA!B26=0,"",MATRICULA!B26) ->  | AE26: =IF(MATRICULA!AF42=0,"",MATRICULA!AF42) -> 
A27: TOTAL | D27: =SUM(D17:D26) -> 11744 | H27: 86.31486109 | L27: =SUM(L17:L26) -> 1659 | P27: 12.19315008 | T27: =SUM(T17:T26) -> 203 | X27: 1.491988828 | AB27: =SUM(AB17:AD26) -> 13606 | AE27: =SUM(AE17:AG26) -> 13606

Sheet Gráfica APROV 2
B3: Secretaría de Educación Pública del Estado de Baja California Sur
B4: Dirección de Educación Secundaria
B5: SEGUNDO GRADO
A9: DIRECCIÓN: | H9: EDUCACIÓN SECUNDARIA
A10: DIRECTORA: | H10: MTRA. OFELIA ELIZABETH OCHOA ROMERO
B13: Lengua Materna | C13: Matemáticas | D13: Inglés | E13: Ciencias y tecnología (Física) | F13: Historia | G13: Formación Cívica y Ética | H13: Tecnología II | I13: Educación Física | J13: Artes
B14: ='APROV 2'!B27:D27 -> 8.5 | C14: ='APROV 2'!E27 -> 8.4 | D14: ='APROV 2'!H27 -> 8.6 | E14: ='APROV 2'!K27 -> 8.5 | F14: ='APROV 2'!N27 -> 8.6 | G14: ='APROV 2'!Q27 -> 8.8 | H14: ='APROV 2'!T27 -> 9 | I14: ='APROV 2'!W27 -> 9.3 | J14: ='APROV 2'!Z27 -> 9

Sheet Gráfica PART 2
B3: Secretaría de Educación Pública del Estado de Baja California Sur
B4: Dirección de Educación Secundaria
B5: SEGUNDO GRADO
B6: PERIODO EVALUACIÓN: | N6: =IF('APROV 1'!N7:Z7<>0,'APROV 1'!N7:Z7, "") -> 2DO TRIMESTRE
B7: CICLO ESCOLAR : | N7: =IF('APROV 1'!N8:Z8<>0, 'APROV 1'!N8:Z8, "") -> 2021-2022
A10: DIRECCIÓN: | H10: EDUCACIÓN SECUNDARIA
A11: DIRECTORA: | H11: MTRA. OFELIA ELIZABETH OCHOA ROMERO
D13: COMUNICACIÓN Y PARTICIPACIÓN SOSTENIDA | E13: COMUNICACIÓN Y PARTICIPACIÓN INTERMITENTE | F13: COMUNICACIÓN PRACTICAMENTE INEXISTENTE
D14: ='PARTICIPACIÓN 2'!H27/100 -> 0.8631486109 | E14: ='PARTICIPACIÓN 2'!P27/100 -> 0.1219315008 | F14: ='PARTICIPACIÓN 2'!X27/100 -> 0.01491988828

Sheet APROV 3
B3: Secretaría de Educación Pública del Estado de Baja California Sur
B4: Dirección de Educación Secundaria
B5: APROVECHAMIENTO Y RIESGO DE NO ACREDITAR
B6: TERCER GRADO
B7: PERIODO EVALUACIÓN: | N7: =IF('APROV 1'!N7:Z7<>0,'APROV 1'!N7:Z7, "") -> 2DO TRIMESTRE
B8: CICLO ESCOLAR : | N8: =IF('APROV 1'!N8:Z8<>0, 'APROV 1'!N8:Z8, "") -> 2021-2022
A10: DIRECCIÓN: | H10: EDUCACIÓN SECUNDARIA
A11: DIRECTORA: | H11: MTRA. OFELIA ELIZABETH OCHOA ROMERO
A13: Promedio de Aprovechamiento de los Campos de Formación Académica | W13: Promedio de Aprovechamiento de las Áreas de Desarrollo Personal y Social
A14: Zona escolar | B14: Español III | E14: Matemáticas III | H14: Segunda Lengua: Inglés III | K14: Ciencias III (Énfasis en Química) | N14: Historia II | Q14: Formación Cívica y Ética II | T14: Tecnología III | W14: Educación Física III | Z14: Artes III | AC14: Prom. Final
B15: CALIF | E15: CALIF | H15: CALIF | K15: CALIF | N15: CALIF | Q15: CALIF | T15: CALIF | W15: CALIF | Z15: CALIF | AC15: CALIF
A16: =IF(MATRICULA!B17=0,"",MATRICULA!B17) -> Generales Públicas | B16: 8.5 | E16: 8.3 | H16: 8.7 | K16: 8.7 | N16: 8.7 | Q16: 8.7 | T16: 8.9 | W16: 9.2 | Z16: 9 | AC16: =IFERROR(ROUND(AVERAGE(B16:AB16),1),"") -> 8.7
A17: =IF(MATRICULA!B18=0,"",MATRICULA!B18) -> Particulares | B17: 8.8 | E17: 8.5 | H17: 8.6 | K17: 8.4 | N17: 8.8 | Q17: 9 | T17: 9.1 | W17: 9.6 | Z17: 9.2 | AC17: 8.9
A18: =IF(MATRICULA!B19=0,"",MATRICULA!B19) -> Secundaria Técnica | B18: 8.5 | E18: 8.2 | H18: 8.5 | K18: 8.5 | N18: 8.5 | Q18: 8.4 | T18: 8.7 | W18: 9.2 | Z18: 8.6 | AC18: 8.6
A19: =IF(MATRICULA!B20=0,"",MATRICULA!B20) -> Telesecundaria | B19: 8.4 | E19: 8.2 | H19: 8.2 | K19: 8.3 | N19: 8.3 | Q19: 8.6 | T19: 9 | W19: 9.1 | Z19: 8.9 | AC19: 8.6
A20: =IF(MATRICULA!B21=0,"",MATRICULA!B21) -> 
A21: =IF(MATRICULA!B22=0,"",MATRICULA!B22) -> 
A22: =IF(MATRICULA!B23=0,"",MATRICULA!B23) -> 
A23: =IF(MATRICULA!B24=0,"",MATRICULA!B24) ->  | AC23: =IFERROR(ROUND(AVERAGE(B23:AB23),1),"") -> 
A24: =IF(MATRICULA!B25=0,"",MATRICULA!B25) -> 
A25: =IF(MATRICULA!B26=0,"",MATRICULA!B26) -> 
A26: Gral. | B26: =IFERROR(ROUND(AVERAGE(B16:D25),1),"") -> 8.6 | E26: =IFERROR(ROUND(AVERAGE(E16:G25),1),"") -> 8.3 | H26: =IFERROR(ROUND(AVERAGE(H16:J25),1),"") -> 8.5 | K26: =IFERROR(ROUND(AVERAGE(K16:M25),1),"") -> 8.5 | N26: =IFERROR(ROUND(AVERAGE(N16:P25),1),"") -> 8.6 | Q26: =IFERROR(ROUND(AVERAGE(Q16:S25),1),"") -> 8.7 | T26: =IFERROR(ROUND(AVERAGE(T16:V25),1),"") -> 8.9 | W26: =IFERROR(ROUND(AVERAGE(W16:Y25),1),"") -> 9.3 | Z26: =IFERROR(ROUND(AVERAGE(Z16:AB25),1),"") -> 8.9 | AC26: =IFERROR(ROUND(AVERAGE(AC16:AD25),1),"") -> 8.7
A28: Campos de Formación Académica en situacion de riesgo de no acreditar | W28: Áreas de Desarrollo Personal y Social en situación de riesgo de no acreditar
A29: Zona escolar | B29: Español III | E29: Matemáticas III | H29: Segunda Lengua: Inglés III | K29: Ciencias III (Énfasis en Química) | N29: Historia II | Q29: Formación Cívica y Ética II | T29: Tecnología III | W29: Educación Física III | Z29: Artes III | AC29: Total
B30: 5 | C30: 6 | D30: T | E30: 5 | F30: 6 | G30: T | H30: 5 | I30: 6 | J30: T | K30: 5 | L30: 6 | M30: T | N30: 5 | O30: 6 | P30: T | Q30: 5 | R30: 6 | S30: T | T30: 5 | U30: 6 | V30: T | W30: 5 | X30: 6 | Y30: T | Z30: 5 | AA30: 6 | AB30: T | AC30: 5 | AD30: 6
A31: =IF(MATRICULA!B17=0,"",MATRICULA!B17) -> Generales Públicas | C31: 282 | D31: =IF(SUM(B31,C31)=0,"",SUM(B31,C31)) -> 282 | F31: 482 | G31: =IF(SUM(E31,F31)=0,"",SUM(E31,F31)) -> 482 | I31: 290 | J31: =IF(SUM(H31,I31)=0,"",SUM(H31,I31)) -> 290 | L31: 354 | M31: =IF(SUM(K31,L31)=0,"",SUM(K31,L31)) -> 354 | O31: 305 | P31: =IF(SUM(N31,O31)=0,"",SUM(N31,O31)) -> 305 | R31: 371 | S31: =IF(SUM(Q31,R31)=0,"",SUM(Q31,R31)) -> 371 | U31: 301 | V31: =IF(SUM(T31,U31)=0,"",SUM(T31,U31)) -> 301 | X31: 147 | Y31: =IF(SUM(W31,X31)=0,"",SUM(W31,X31)) -> 147 | AA31: 234 | AB31: =IF(SUM(Z31,AA31)=0,"",SUM(Z31,AA31)) -> 234 | AC31: =IF(SUM(B31,E31,H31,K31,N31,Q31,T31,W31,Z31)=0,"",SUM(B31,E31,H31,K31,N31,Q31,T31,W31,Z31)) ->  | AD31: =IF(SUM(C31,F31,I31,L31,O31,R31,U31,X31,AA31)=0,"",SUM(C31,F31,I31,L31,O31,R31,U31,X31,AA31)) -> 2766
A32: =IF(MATRICULA!B18=0,"",MATRICULA!B18) -> Particulares | C32: 43 | D32: 43 | F32: 88 | G32: 88 | I32: 52 | J32: 52 | L32: 47 | M32: 47 | O32: 30 | P32: 30 | R32: 27 | S32: 27 | U32: 33 | V32: 33 | X32: 28 | Y32: 28 | AA32: 20 | AB32: 20 | AD32: 368
A33: =IF(MATRICULA!B19=0,"",MATRICULA!B19) -> Secundaria Técnica | C33: 611 | D33: 611 | F33: 608 | G33: 608 | I33: 518 | J33: 518 | L33: 675 | M33: 675 | O33: 511 | P33: 511 | R33: 663 | S33: 663 | U33: 472 | V33: 472 | X33: 325 | Y33: 325 | AA33: 597 | AB33: 597 | AD33: 4980
A34: =IF(MATRICULA!B20=0,"",MATRICULA!B20) -> Telesecundaria | C34: 184 | D34: 184 | F34: 206 | G34: 206 | I34: 187 | J34: 187 | L34: 207 | M34: 207 | O34: 231 | P34: 231 | R34: 191 | S34: 191 | U34: 166 | V34: 166 | X34: 158 | Y34: 158 | AA34: 164 | AB34: 164 | AD34: 1694
A35: =IF(MATRICULA!B21=0,"",MATRICULA!B21) -> 
A36: =IF(MATRICULA!B22=0,"",MATRICULA!B22) -> 
A37: =IF(MATRICULA!B23=0,"",MATRICULA!B23) -> 
A38: =IF(MATRICULA!B24=0,"",MATRICULA!B24) ->  | D38: =IF(SUM(B38,C38)=0,"",SUM(B38,C38)) ->  | G38: =IF(SUM(E38,F38)=0,"",SUM(E38,F38)) ->  | J38: =IF(SUM(H38,I38)=0,"",SUM(H38,I38)) ->  | M38: =IF(SUM(K38,L38)=0,"",SUM(K38,L38)) ->  | P38: =IF(SUM(N38,O38)=0,"",SUM(N38,O38)) ->  | S38: =IF(SUM(Q38,R38)=0,"",SUM(Q38,R38)) ->  | V38: =IF(SUM(T38,U38)=0,"",SUM(T38,U38)) ->  | Y38: =IF(SUM(W38,X38)=0,"",SUM(W38,X38)) ->  | AB38: =IF(SUM(Z38,AA38)=0,"",SUM(Z38,AA38)) ->  | AC38: =IF(SUM(B38,E38,H38,K38,N38,Q38,T38,W38,Z38)=0,"",SUM(B38,E38,H38,K38,N38,Q38,T38,W38,Z38)) -> 
A39: =IF(MATRICULA!B25=0,"",MATRICULA!B25) -> 
A40: =IF(MATRICULA!B26=0,"",MATRICULA!B26) -> 
A41: Total | B41: =IF(SUM(B31:B40)=0,"",SUM(B31:B40)) ->  | C41: 1120 | D41: 1120 | F41: 1384 | G41: 1384 | I41: 1047 | J41: 1047 | L41: 1283 | M41: 1283 | O41: 1077 | P41: 1077 | R41: 1252 | S41: 1252 | U41: 972 | V41: 972 | X41: 658 | Y41: 658 | AA41: 1015 | AB41: 1015 | AD41: 9808
A42: Nota: Para las columnas "Campos de Formación Académica y Áreas de Desarrollo Personal y Social en riesgo de no acreditar" registre la cantidad de cincos o seis que existen en cada campo o área.

Sheet PARTICIPACIÓN 3
B3: Secretaría de Educación Pública del Estado de Baja California Sur
B4: Dirección de Educación Secundaria
B5: NIVELES DE COMUNICACIÓN Y PARTICIPACIÓN DE ALUMNOS
B6: TERCER GRADO
B7: PERIODO EVALUACIÓN: | N7: =IF('APROV 1'!N7:Z7<>0,'APROV 1'!N7:Z7, "") -> 2DO TRIMESTRE
B8: CICLO ESCOLAR : | N8: =IF('APROV 1'!N8:Z8<>0, 'APROV 1'!N8:Z8, "") -> 2021-2022
A11: DIRECCIÓN: | H11: EDUCACIÓN SECUNDARIA
A12: DIRECTORA: | H12: MTRA. OFELIA ELIZABETH OCHOA ROMERO
A14: COMUNICACIÓN Y PARTICIPACIÓN CON ALUMNOS (Registrar cantidad de alumnos)
A15: Modalidad | D15: COMUNICACIÓN Y PARTICIPACIÓN SOSTENIDA | H15: % | L15: COMUNICACIÓN Y PARTICIPACIÓN INTERMITENTE | P15: % | T15: COMUNICACIÓN PRACTICAMENTE INEXISTENTE | X15: % | AB15: TOTAL | AE15: MATRÍCULA EXISTENCIA
A17: =IF(MATRICULA!B17=0,"",MATRICULA!B17) -> Generales Públicas | D17: 4326 | H17: =IFERROR((D17+E17+F17)/AE17*100,"") -> 81.02640944 | L17: 879 | P17: =IFERROR((L17+M17+N17)/AE17*100,"") -> 16.46375726 | T17: 134 | X17: =IFERROR((T17+U17+V17)/AE17*100,"") -> 2.509833302 | AB17: =IF(SUM(D17:G17,L17:O17,T17:W17)=0,"",SUM(D17:G17,L17:O17,T17:W17)) -> 5339 | AE17: =IF(MATRICULA!AI33=0,"",MATRICULA!AI33) -> 5339
A18: =IF(MATRICULA!B18=0,"",MATRICULA!B18) -> Particulares | D18: 1169 | H18: =IFERROR((D18+E18+F18)/AE18*100,"") -> 97.66081871 | L18: 28 | P18: =IFERROR((L18+M18+N18)/AE18*100,"") -> 2.339181287 | T18: 0 | X18: =IFERROR((T18+U18+V18)/AE18*100,"") -> 0 | AB18: =IF(SUM(D18:G18,L18:O18,T18:W18)=0,"",SUM(D18:G18,L18:O18,T18:W18)) -> 1197 | AE18: =IF(MATRICULA!AI34=0,"",MATRICULA!AI34) -> 1197
A19: =IF(MATRICULA!B19=0,"",MATRICULA!B19) -> Secundaria Técnica | D19: 4210 | H19: 84.01516663 | L19: 734 | P19: 14.6477749 | T19: 67 | X19: 1.337058471 | AB19: 5011 | AE19: =IF(MATRICULA!AI35=0,"",MATRICULA!AI35) -> 5011
A20: =IF(MATRICULA!B20=0,"",MATRICULA!B20) -> Telesecundaria | D20: 1488 | H20: 90.34608379 | L20: 114 | P20: 6.921675774 | T20: 45 | X20: 2.732240437 | AB20: 1647 | AE20: =IF(MATRICULA!AI36=0,"",MATRICULA!AI36) -> 1647
A21: =IF(MATRICULA!B21=0,"",MATRICULA!B21) ->  | AE21: =IF(MATRICULA!AI37=0,"",MATRICULA!AI37) -> 
A22: =IF(MATRICULA!B22=0,"",MATRICULA!B22) ->  | AE22: =IF(MATRICULA!AI38=0,"",MATRICULA!AI38) -> 
A23: =IF(MATRICULA!B23=0,"",MATRICULA!B23) ->  | AE23: =IF(MATRICULA!AI39=0,"",MATRICULA!AI39) -> 
A24: =IF(MATRICULA!B24=0,"",MATRICULA!B24) ->  | AE24: =IF(MATRICULA!AI40=0,"",MATRICULA!AI40) -> 
A25: =IF(MATRICULA!B25=0,"",MATRICULA!B25) ->  | AE25: =IF(MATRICULA!AI41=0,"",MATRICULA!AI41) -> 
A26: =IF(MATRICULA!B26=0,"",MATRICULA!B26) ->  | AE26: =IF(MATRICULA!AI42=0,"",MATRICULA!AI42) -> 
A27: TOTAL | D27: =SUM(D17:D26) -> 11193 | H27: 84.83401546 | L27: =SUM(L17:L26) -> 1755 | P27: 13.30150068 | T27: =SUM(T17:T26) -> 246 | X27: 1.864483856 | AB27: =SUM(AB17:AD26) -> 13194 | AE27: =SUM(AE17:AG26) -> 13194

Sheet Gráfica APROV 3
B3: Secretaría de Educación Pública del Estado de Baja California Sur
B4: Dirección de Educación Secundaria
B5: TERCER GRADO
B6: PERIODO EVALUACIÓN: | N6: =IF('APROV 1'!N7:Z7<>0,'APROV 1'!N7:Z7, "") -> 2DO TRIMESTRE
B7: CICLO ESCOLAR : | N7: =IF('APROV 1'!N8:Z8<>0, 'APROV 1'!N8:Z8, "") -> 2021-2022
A9: DIRECCIÓN: | H9: EDUCACIÓN SECUNDARIA
A10: DIRECTORA: | H10: MTRA. OFELIA ELIZABETH OCHOA ROMERO
B12: Español III | C12: Matemáticas III | D12: Segunda Lengua: Inglés III | E12: Ciencias III (Énfasis en Química) | F12: Historia II | G12: Formación Cívica y Ética II | H12: Tecnología III | I12: Educación Física III | J12: Artes III
B13: ='APROV 3'!B26:D26 -> 8.6 | C13: ='APROV 3'!E26 -> 8.3 | D13: ='APROV 3'!H26 -> 8.5 | E13: ='APROV 3'!K26 -> 8.5 | F13: ='APROV 3'!N26 -> 8.6 | G13: ='APROV 3'!Q26 -> 8.7 | H13: ='APROV 3'!T26 -> 8.9 | I13: ='APROV 3'!W26 -> 9.3 | J13: ='APROV 3'!Z26 -> 8.9

Sheet Gráfica PART 3
B3: Secretaría de Educación Pública del Estado de Baja California Sur
B4: Dirección de Educación Secundaria
B5: TERCER GRADO
B6: PERIODO EVALUACIÓN: | N6: =IF('APROV 1'!N7:Z7<>0,'APROV 1'!N7:Z7, "") -> 2DO TRIMESTRE
B7: CICLO ESCOLAR : | N7: =IF('APROV 1'!N8:Z8<>0, 'APROV 1'!N8:Z8, "") -> 2021-2022
A10: DIRECCIÓN: | H10: EDUCACIÓN SECUNDARIA
A11: DIRECTORA: | H11: MTRA. OFELIA ELIZABETH OCHOA ROMERO
D13: COMUNICACIÓN Y PARTICIPACIÓN SOSTENIDA | E13: COMUNICACIÓN Y PARTICIPACIÓN INTERMITENTE | F13: COMUNICACIÓN PRACTICAMENTE INEXISTENTE
D14: ='PARTICIPACIÓN 3'!H27/100 -> 0.8483401546 | E14: ='PARTICIPACIÓN 3'!P27/100 -> 0.1330150068 | F14: ='PARTICIPACIÓN 3'!X27/100 -> 0.01864483856

Sheet Gráfica Promedios Finales
B3: Secretaría de Educación Pública del Estado de Baja California Sur
B4: Dirección de Educación Secundaria
B5: PERIODO DE EVALUACIÓN: | N5: =IF('APROV 1'!N7:Z7<>0,'APROV 1'!N7:Z7, "") -> 2DO TRIMESTRE
B6: CICLO ESCOLAR : | N6: =IF('APROV 1'!N8:Z8<>0, 'APROV 1'!N8:Z8, "") -> 2021-2022
A8: DIRECCIÓN: | H8: EDUCACIÓN SECUNDARIA
A9: DIRECTORA: | H9: MTRA. OFELIA ELIZABETH OCHOA ROMERO
B14: PROMEDIO 1RO | C14: PROMEDIO 2DO | D14: PROMEDIO 3ERO
B15: =+'APROV 1'!AF26 -> 8.7 | C15: =+'APROV 2'!AC27 -> 8.7 | D15: ='APROV 3'!AC26 -> 8.7

Sheet NORMALIDAD MÍNIMA
B3: Secretaría de Educación Pública del Estado de Baja California Sur
B4: Dirección de Educación Secundaria
B5: NORMALIDAD MÍNIMA
B6: PERIODO DE EVALUACIÓN: | I6: =IF('APROV 1'!N7<>0,'APROV 1'!N7, "") -> 2DO TRIMESTRE
B7: CICLO ESCOLAR : | I7: =IF('APROV 1'!N8<>0, 'APROV 1'!N8, "") -> 2021-2022
A9: DIRECCIÓN: | H9: EDUCACIÓN SECUNDARIA
A10: DIRECTORA: | H10: MTRA. OFELIA ELIZABETH OCHOA ROMERO
A12: Modalidad | B12: DIRECTIVOS (Directores, subdirectores) | E12: COORDINADORES | H12: R | I12: INASISTENCIAS | L12: LICENCIAS ECONÓMICAS | N12: LICENCIAS MÉDICAS | P12: TOTAL DE DÍAS NO LABORADOS
B13: H | C13: M | D13: T | E13: H | F13: M | G13: T | I13: I | J13: P.D. | K13: D.N.L.I y P.D. | L13: L.E. | M13: D.N.L.E. | N13: L.M. | O13: D.N.L.M. | P13: DNLI y PD, DNLE, DNLM
A14: =IF(MATRICULA!B17=0,"",MATRICULA!B17) -> Generales Públicas | B14: 41 | C14: 26 | D14: =IF(SUM(B14,C14)=0,"",SUM(B14,C14)) -> 67 | E14: 25 | F14: 14 | G14: =IF(SUM(E14,F14)=0,"",SUM(E14,F14)) -> 39 | I14: 70 | J14: 8 | K14: =IF(SUM(I14,J14)=0,"",SUM(I14,J14)) -> 78 | L14: 20 | M14: 35 | N14: 16 | O14: 287 | P14: =IF(SUM(K14,M14,O14)=0,"",SUM(K14,M14,O14)) -> 400
A15: =IF(MATRICULA!B18=0,"",MATRICULA!B18) -> Particulares | D15: =IF(SUM(B15,C15)=0,"",SUM(B15,C15)) ->  | G15: =IF(SUM(E15,F15)=0,"",SUM(E15,F15)) ->  | K15: =IF(SUM(I15,J15)=0,"",SUM(I15,J15)) -> 
A16: =IF(MATRICULA!B19=0,"",MATRICULA!B19) -> Secundaria Técnica | B16: 38 | C16: 22 | D16: 60 | E16: 26 | F16: 22 | G16: 48 | J16: 5 | K16: 5 | L16: 27 | M16: 59 | N16: 10 | O16: 56 | P16: 120
A17: =IF(MATRICULA!B20=0,"",MATRICULA!B20) -> Telesecundaria
A18: =IF(MATRICULA!B21=0,"",MATRICULA!B21) -> 
A19: =IF(MATRICULA!B22=0,"",MATRICULA!B22) -> 
A20: =IF(MATRICULA!B23=0,"",MATRICULA!B23) -> 
A21: =IF(MATRICULA!B24=0,"",MATRICULA!B24) -> 
A22: =IF(MATRICULA!B25=0,"",MATRICULA!B25) -> 
A23: =IF(MATRICULA!B26=0,"",MATRICULA!B26) -> 
A24: Total | B24: =IF(SUM(B14:B23)=0,"",SUM(B14:B23)) -> 79 | C24: 48 | D24: 127 | E24: 51 | F24: 36 | G24: 87 | I24: 70 | J24: 13 | K24: 83 | L24: 47 | M24: 94 | N24: 26 | O24: 343 | P24: 520
A26: Modalidad | B26: PERSONAL POR HORAS | E26: DOCENTES | H26: R | I26: INASISTENCIAS (Horas) | L26: LICENCIAS ECONÓMICAS | N26: LICENCIAS MÉDICAS | P26: TOTAL DE HORAS NO LABORADOS
E27: H | F27: M | G27: T | I27: I | J27: P.D. | K27: H.N.L.I y P.D. | L27: L.E. | M27: H.N.L.E. | N27: L.M. | O27: H.N.L.M. | P27: HNLI y PD, HNLE, HNLM
A28: =IF(MATRICULA!B17=0,"",MATRICULA!B17) -> Generales Públicas | E28: 440 | F28: 518 | G28: =IF(SUM(E28,F28)=0,"",SUM(E28,F28)) -> 958 | H28: 674 | I28: 1107 | J28: 515 | K28: =IF(SUM(I28,J28)=0,"",SUM(I28,J28)) -> 1622 | L28: 334 | M28: 2930 | N28: 152 | O28: 3588 | P28: =IF(SUM(K28,M28,O28)=0,"",SUM(K28,M28,O28)) -> 8140
A29: =IF(MATRICULA!B18=0,"",MATRICULA!B18) -> Particulares | K29: =IF(SUM(I29,J29)=0,"",SUM(I29,J29)) -> 
A30: =IF(MATRICULA!B19=0,"",MATRICULA!B19) -> Secundaria Técnica | E30: 392 | F30: 445 | G30: 837 | I30: 1367 | J30: 214 | K30: 1581 | L30: 507 | M30: 3242 | N30: 287 | O30: 3014 | P30: 7837
A31: =IF(MATRICULA!B20=0,"",MATRICULA!B20) -> Telesecundaria
A32: =IF(MATRICULA!B21=0,"",MATRICULA!B21) -> 
A33: =IF(MATRICULA!B22=0,"",MATRICULA!B22) -> 
A34: =IF(MATRICULA!B23=0,"",MATRICULA!B23) -> 
A35: =IF(MATRICULA!B24=0,"",MATRICULA!B24) -> 
A36: =IF(MATRICULA!B25=0,"",MATRICULA!B25) -> 
A37: =IF(MATRICULA!B26=0,"",MATRICULA!B26) -> 
A38: Total | E38: =IF(SUM(E28:E37)=0,"",SUM(E28:E37)) -> 832 | F38: 963 | G38: 1795 | H38: 674 | I38: 2474 | J38: 729 | K38: 3203 | L38: 841 | M38: 6172 | N38: 439 | O38: 6602 | P38: 15977
A40: Zona escolar | B40: ASISTENCIA EDUCATIVA (Psicólogos, trabajo social, médicos, prefectos) | E40: ADMINISTRATIVO Y DE APOYO | H40: R | I40: INASISTENCIAS | L40: LICENCIAS ECONÓMICAS | N40: LICENCIAS MÉDICAS | P40: TOTAL DE DÍAS NO LABORADOS
B41: H | C41: M | D41: T | E41: H | F41: M | G41: T | I41: I | J41: P.D. | K41: D.N.L.I y P.D. | L41: L.E. | M41: D.N.L.E. | N41: L.M. | O41: D.N.L.M. | P41: DNLI y PD, DNLE, DNLM
A42: =IF(MATRICULA!B17=0,"",MATRICULA!B17) -> Generales Públicas | B42: 64 | C42: 127 | D42: =IF(SUM(B42,C42)=0,"",SUM(B42,C42)) -> 191 | E42: 200 | F42: 201 | G42: =IF(SUM(E42,F42)=0,"",SUM(E42,F42)) -> 401 | H42: 87 | I42: 165 | J42: 274 | K42: =IF(SUM(I42,J42)=0,"",SUM(I42,J42)) -> 439 | L42: 251 | M42: 620 | N42: 107 | O42: 762 | P42: =IF(SUM(K42,M42,O42)=0,"",SUM(K42,M42,O42)) -> 1821
A43: =IF(MATRICULA!B18=0,"",MATRICULA!B18) -> Particulares
A44: =IF(MATRICULA!B19=0,"",MATRICULA!B19) -> Secundaria Técnica | B44: 86 | C44: 103 | D44: 189 | E44: 140 | F44: 190 | G44: 330 | H44: 50 | I44: 81 | J44: 43 | K44: 124 | L44: 239 | M44: 512 | N44: 113 | O44: 788 | P44: 1424
A45: =IF(MATRICULA!B20=0,"",MATRICULA!B20) -> Telesecundaria
A46: =IF(MATRICULA!B21=0,"",MATRICULA!B21) -> 
A47: =IF(MATRICULA!B22=0,"",MATRICULA!B22) -> 
A48: =IF(MATRICULA!B23=0,"",MATRICULA!B23) -> 
A49: =IF(MATRICULA!B24=0,"",MATRICULA!B24) -> 
A50: =IF(MATRICULA!B25=0,"",MATRICULA!B25) -> 
A51: =IF(MATRICULA!B26=0,"",MATRICULA!B26) -> 
A52: Total | B52: =IF(SUM(B42:B51)=0,"",SUM(B42:B51)) -> 150 | C52: 230 | D52: 380 | E52: 340 | F52: 391 | G52: 731 | H52: 137 | I52: 246 | J52: 317 | K52: 563 | L52: 490 | M52: 1132 | N52: 220 | O52: 1550 | P52: 3245
A54: NOTA: | J54: NOTA:
A55: I.: INASISTENCIAS | J55: H.N.L.E.: HORAS NO LABORADOS POR LICENCIAS ECONÓMICAS
A56: H.N.L.I.: HORAS NO LABORADAS POR INASISTENCIAS | J56: D.N.L.E.: DÍAS NO LABORADOS POR LICENCIAS ECONÓMICAS
A57: D.N.L.I.: DÍAS NO LABORADOS POR INASISTENCIAS | J57: L.M.: PERSONAS QUE PRESENTARON LICENCIAS MÉDICAS
A58: R. : CANTIDAD DE RETARDOS | J58: H.N.L.M.: HORAS NO LABORADAS POR LICENCIAS MÉDICAS
A59: L.E.: PERSONAL QUE SOLICITÓ LICENCIAS ECONÓMICAS | J59: D.N.L.M.: DÍAS NO LABORADOS POR LICENCIAS MÉDICAS
A60: P.D.: PERMISOS DIRECCIÓN
